bitfinex-derivatives/quotes_BTCF0:USTF0_20241122
["timestamp","ask_amount","ask_price","bid_price","bid_amount"]
[1732297312505,0.050489,98916.0,98915.0,0.080489]
[1732297313513,0.14996701,98921.0,98920.0,0.050487]
[1732297313813,0.149407,98921.0,98915.0,0.03]
[1732297314012,0.050489,98916.0,98915.0,0.08049]
[1732297316315,0.09892,98921.0,98920.0,0.050487]
[1732297316316,0.149407,98921.0,98920.0,0.050487]
[1732297316907,0.050489,98916.0,98915.0,0.08049]
[1732297318012,0.149407,98921.0,98920.0,0.050487]
[1732297319121,0.09892,98930.0,98915.0,0.03]
[1732297319318,0.050484,98926.0,98925.0,0.050484]
[1732297319612,0.09892,98930.0,98925.0,0.18]
[1732297319815,0.09892,98930.0,98926.0,0.0321]
[1732297320015,0.149403,98930.0,98929.0,0.050483]
[1732297320220,0.050484,98927.0,98926.0,0.0321]
[1732297321614,0.050484,98926.0,98925.0,0.18]
[1732297322816,0.050484,98926.0,98925.0,0.230485]
[1732297323122,0.050484,98926.0,98925.0,0.18]
[1732297330011,0.050488,98919.0,98918.0,0.04011509]
[1732297330213,0.411288,98919.0,98918.0,0.02]
[1732297331122,0.714568,98919.0,98918.0,0.02]
[1732297331320,0.714568,98919.0,98878.0,0.050509]
[1732297331518,0.411295,98905.0,98904.0,0.03151658]
[1732297331723,0.509975,98905.0,98904.0,0.00151658]
[1732297334418,0.411295,98905.0,98904.0,0.00151658]
[1732297334619,0.509975,98905.0,98904.0,0.00151658]
[1732297335025,0.411295,98905.0,98904.0,0.00151658]
[1732297335220,0.3608,98905.0,98904.0,0.06]
[1732297335415,0.3608,98905.0,98904.0,0.0924]
[1732297335623,0.3108,98905.0,98904.0,0.0924]
[1732297336030,0.3608,98919.0,98918.0,0.050488]
[1732297336225,0.3608,98919.0,98904.0,0.0324]
[1732297336531,0.050489,98918.0,98916.0,0.050489]
[1732297336824,0.050489,98918.0,98916.0,0.24]
[1732297338324,0.050489,98918.0,98916.0,0.290489]
[1732297338629,0.3608,98919.0,98918.0,0.050488]
[1732297339025,0.411288,98919.0,98918.0,0.050488]
[1732297339435,0.411288,98919.0,98917.0,0.0333]
[1732297340022,0.411288,98919.0,98918.0,0.050488]
[1732297340530,0.411288,98919.0,98917.0,0.07426584]
[1732297341224,0.411288,98919.0,98917.0,0.12475484]
[1732297341424,0.3608,98919.0,98917.0,0.12475484]
[1732297341628,0.3608,98919.0,98917.0,0.15575484]
[1732297342131,0.05104401,98927.0,98924.0,0.050485]
[1732297342332,0.050484,98927.0,98924.0,0.050485]
[1732297342532,0.050481,98933.0,98924.0,0.050485]
[1732297342731,0.050481,98932.0,98924.0,0.050485]
[1732297343032,0.3608,98926.0,98924.0,0.050485]
[1732297343230,0.05200218,98925.0,98917.0,0.10526584]
[1732297343431,0.00151718,98925.0,98917.0,0.10526584]
[1732297343622,0.050485,98924.0,98917.0,0.10526584]
[1732297343827,0.00151718,98925.0,98923.0,0.050486]
[1732297344129,0.050486,98923.0,98917.0,0.10526584]
[1732297344334,0.050486,98923.0,98922.0,0.050486]
[1732297345130,0.00151718,98925.0,98924.0,0.050485]
[1732297345336,0.050486,98923.0,98920.0,0.050487]
[1732297345539,0.050486,98923.0,98922.0,0.050486]
[1732297345832,0.00151718,98925.0,98924.0,0.050485]
[1732297346134,0.05200218,98925.0,98924.0,0.050485]
[1732297346332,0.00151718,98925.0,98924.0,0.050485]
[1732297346736,0.05200218,98925.0,98924.0,0.050485]
[1732297346931,0.050487,98921.0,98920.0,0.050486]
[1732297347233,0.00151718,98925.0,98917.0,0.10526584]
[1732297347234,0.00151718,98925.0,98917.0,0.07426584]
[1732297347423,0.00151718,98925.0,98924.0,0.050485]
[1732297348832,0.05200218,98925.0,98924.0,0.050485]
[1732297349532,0.00151718,98925.0,98924.0,0.050485]
[1732297350642,0.00151718,98925.0,98917.0,0.10626584]
[1732297350935,0.411288,98918.0,98917.0,0.10626584]
[1732297351435,0.411288,98918.0,98917.0,0.04096584]
[1732297351637,0.3608,98918.0,98916.0,0.24]
[1732297351835,0.050489,98917.0,98916.0,0.24]
[1732297352031,0.050489,98917.0,98916.0,0.27968972]
[1732297352938,0.050489,98917.0,98916.0,0.24]
[1732297354331,0.050489,98917.0,98916.0,0.290489]
[1732297355340,0.3608,98918.0,98917.0,0.050489]
[1732297355540,0.149168,98919.0,98916.0,0.24]
[1732297355743,0.00151718,98925.0,98924.0,0.050485]
[1732297356847,0.05200218,98925.0,98924.0,0.050485]
[1732297357744,0.050488,98920.0,98919.0,0.050488]
[1732297359751,0.00151718,98925.0,98924.0,0.050485]
[1732297360558,0.05200218,98925.0,98924.0,0.050485]
[1732297364346,0.05200218,98925.0,98919.0,0.04087687]
[1732297364347,0.00151718,98925.0,98919.0,0.04087687]
[1732297364550,0.050487,98920.0,98919.0,0.050487]
[1732297364965,0.3608,98922.0,98916.0,0.24]
[1732297365168,0.050489,98917.0,98916.0,0.290487]
[1732297366865,0.3608,98922.0,98916.0,0.24]
[1732297367173,0.3608,98922.0,98921.0,0.050487]
[1732297370473,0.00151718,98925.0,98924.0,0.050485]
[1732297379672,0.05200218,98925.0,98924.0,0.050485]
[1732297379983,0.05200218,98925.0,98919.0,0.050487]
[1732297379984,0.050487,98920.0,98919.0,0.050487]
[1732297380178,0.050489,98917.0,98916.0,0.28074859]
[1732297381477,0.050489,98917.0,98916.0,0.24]
[1732297382770,0.050489,98917.0,98916.0,0.651289]
[1732297382977,0.3608,98958.0,98924.0,0.050485]
[1732297383172,0.065,98944.0,98924.0,0.471285]
[1732297383382,0.0329,98943.0,98924.0,0.471285]
[1732297383580,0.13142,98943.0,98924.0,0.471285]
[1732297385171,0.0329,98943.0,98924.0,0.471285]
[1732297385371,0.09852,98941.0,98924.0,0.471285]
[1732297385776,0.45932,98941.0,98924.0,0.110485]
[1732297386279,0.19592106,98940.0,98924.0,0.06]
[1732297386488,0.050484,98926.0,98924.0,0.06]
[1732297386681,0.211985,98925.0,98924.0,0.06]
[1732297386983,0.572785,98925.0,98924.0,0.06]
[1732297387986,0.050489,98916.0,98904.0,0.150495]
[1732297388182,0.050489,98916.0,98905.0,0.050495]
[1732297388183,0.3608,98907.0,98905.0,0.050495]
[1732297390090,0.52286001,98925.0,98920.0,0.050487]
[1732297390384,0.5223,98925.0,98923.0,0.050486]
[1732297390781,0.5223,98925.0,98923.0,0.060486]
[1732297391202,0.5223,98925.0,98923.0,0.01]
[1732297391883,0.5223,98925.0,98923.0,0.060485]
[1732297392279,0.4239,98925.0,98923.0,0.060485]
[1732297393981,0.3608,98925.0,98923.0,0.060485]
[1732297394889,0.3608,98925.0,98923.0,0.01]
[1732297395092,0.3608,98925.0,98924.0,0.050485]
[1732297397494,0.3608,98930.0,98926.0,0.050484]
[1732297397791,0.050484,98928.0,98926.0,0.050484]
[1732297398489,0.3608,98930.0,98926.0,0.050484]
[1732297408095,0.05200081,98927.0,98926.0,0.050484]
[1732297408999,0.00151681,98927.0,98926.0,0.050484]
[1732297411201,0.05200081,98927.0,98926.0,0.050484]
[1732297411601,0.05200081,98927.0,98923.0,0.01]
[1732297411602,0.050485,98924.0,98923.0,0.01]
[1732297411798,0.411285,98924.0,98923.0,0.01]
[1732297413095,0.050495,98905.0,98904.0,0.1]
[1732297413292,0.411295,98905.0,98904.0,0.200495]
[1732297414410,0.3608,98905.0,98904.0,0.200495]
[1732297414795,0.3608,98905.0,98904.0,0.2410101]
[1732297417610,0.3608,98915.0,98914.0,0.05049]
[1732297417903,0.3608,98915.0,98914.0,0.11049]
[1732297417904,0.36209362,98915.0,98914.0,0.11049]
[1732297419698,0.36209362,98915.0,98914.0,0.15063369]
[1732297430426,0.41258362,98915.0,98914.0,0.10014369]
[1732297430625,0.41258362,98915.0,98914.0,0.06]
[1732297431525,0.45223262,98915.0,98914.0,0.06]
[1732297431933,0.050495,98905.0,98904.0,0.150495]
[1732297432127,0.411295,98905.0,98904.0,0.210495]
[1732297432631,0.3608,98905.0,98904.0,0.210495]
[1732297432934,0.36209362,98905.0,98904.0,0.210495]
[1732297433133,0.36209362,98905.0,98904.0,0.24986749]
[1732297434127,0.41258862,98905.0,98904.0,0.24986749]
[1732297434723,0.36209362,98905.0,98904.0,0.24986749]
[1732297435937,0.26209362,98905.0,98904.0,0.14986749]
[1732297436729,0.26209362,98905.0,98904.0,0.110495]
[1732297436935,0.31258862,98905.0,98904.0,0.110495]
[1732297438140,0.26209362,98905.0,98904.0,0.110495]
[1732297444337,0.00129362,98905.0,98904.0,0.110495]
[1732297446035,0.71590862,98905.0,98904.0,0.06]
[1732297446240,0.66541362,98905.0,98881.0,0.03171693]
[1732297446440,0.7216,98882.0,98881.0,0.19171693]
[1732297446939,0.72289362,98882.0,98881.0,0.19171693]
[1732297447440,0.72289362,98882.0,98881.0,0.23257647]
[1732297447639,0.72289362,98882.0,98881.0,0.20237647]
[1732297450042,0.72289362,98882.0,98855.0,0.033]
[1732297450043,0.72289362,98882.0,98852.0,0.050522]
[1732297450237,0.050521,98855.0,98853.0,0.0306]
[1732297450940,0.00129362,98854.0,98853.0,0.0306]
[1732297452642,0.00129362,98854.0,98852.0,0.11]
[1732297452643,0.05181462,98854.0,98852.0,0.11]
[1732297453043,0.00129362,98853.0,98852.0,0.11]
[1732297455142,0.10505362,98853.0,98852.0,0.11]
[1732297455341,0.10505362,98853.0,98845.0,0.04059098]
[1732297455539,0.10505362,98853.0,98845.0,0.07]
[1732297455540,0.3608,98846.0,98845.0,0.07]
[1732297456149,0.41261862,98846.0,98845.0,0.07]
[1732297457543,0.36209362,98846.0,98845.0,0.11019352]
[1732297457747,0.36209362,98846.0,98845.0,0.16071952]
[1732297459644,0.26209362,98846.0,98845.0,0.16071952]
[1732297460252,0.36209362,98846.0,98845.0,0.16071952]
[1732297460753,0.00129362,98846.0,98845.0,0.16071952]
[1732297461446,0.36209362,98846.0,98845.0,0.16071952]
[1732297462249,0.41261862,98846.0,98845.0,0.16071952]
[1732297463354,0.41261862,98846.0,98845.0,0.07]
[1732297463654,0.45356076,98846.0,98845.0,0.07]
[1732297464146,0.51936076,98846.0,98845.0,0.07]
[1732297464542,0.82288076,98846.0,98845.0,0.07]
[1732297465951,0.51936076,98846.0,98845.0,0.07]
[1732297466846,0.48606076,98846.0,98845.0,0.07]
[1732297467157,0.48606076,98846.0,98803.0,0.1038]
[1732297467158,0.73905576,98846.0,98803.0,0.1038]
[1732297467450,0.3608,98816.0,98815.0,0.083941]
[1732297467648,0.3608,98816.0,98815.0,0.20399267]
[1732297468042,0.36209362,98816.0,98815.0,0.20399267]
[1732297472551,0.00129362,98816.0,98815.0,0.20399267]
[1732297472951,0.3608,98828.0,98827.0,0.050535]
[1732297473251,0.3108,98828.0,98827.0,0.36058667]
[1732297473454,0.3608,98854.0,98827.0,0.97441167]
[1732297473657,0.050522,98853.0,98852.0,0.050521]
[1732297473955,0.050522,98853.0,98852.0,0.080521]
[1732297474556,0.050522,98853.0,98852.0,0.03]
[1732297475148,0.050522,98853.0,98852.0,0.080522]
[1732297476049,0.3608,98854.0,98852.0,0.03005167]
[1732297476251,0.3608,98854.0,98853.0,0.050521]
[1732297476450,0.3608,98854.0,98853.0,0.083521]
[1732297476656,0.3608,98862.0,98861.0,0.050517]
[1732297476850,0.09896,98865.0,98853.0,0.39432]
[1732297477046,0.050521,98853.0,98852.0,0.03005167]
[1732297478855,0.050521,98853.0,98852.0,0.08057367]
[1732297479055,0.36140001,98856.0,98855.0,0.05052]
[1732297479252,0.41132,98856.0,98855.0,0.05052]
[1732297479457,0.050515,98866.0,98856.0,0.05052]
[1732297479659,0.050515,98866.0,98865.0,0.050514]
[1732297479855,0.050515,98866.0,98865.0,0.080514]
[1732297482261,0.09896,98875.0,98865.0,0.080514]
[1732297482460,0.05203216,98868.0,98867.0,0.050514]
[1732297484862,0.050515,98866.0,98865.0,0.07031989]
[1732297485063,0.050515,98866.0,98865.0,0.12083489]
[1732297486364,0.00151816,98868.0,98865.0,0.12083489]
[1732297486568,0.00151816,98868.0,98867.0,0.050514]
[1732297487069,0.05203216,98868.0,98867.0,0.050514]
[1732297493365,0.050515,98866.0,98865.0,0.07031989]
[1732297493670,0.050515,98866.0,98865.0,0.12083489]
[1732297497460,0.00151816,98868.0,98865.0,0.12083489]
[1732297497461,0.00151816,98868.0,98867.0,0.050514]
[1732297499073,0.00151816,98868.0,98867.0,0.50650493]
[1732297499271,0.3608,98883.0,98882.0,0.050507]
[1732297499467,0.3608,98883.0,98882.0,0.110507]
[1732297499870,0.411306,98883.0,98882.0,0.110507]
[1732297500066,0.3608,98883.0,98882.0,0.110507]
[1732297500477,0.36136001,98891.0,98890.0,0.050503]
[1732297500682,0.36231732,98903.0,98890.0,0.411303]
[1732297500683,0.36287733,98903.0,98890.0,0.411303]
[1732297500972,0.050497,98900.0,98894.0,0.050501]
[1732297501179,0.050497,98900.0,98894.0,0.120501]
[1732297501368,0.00151732,98903.0,98894.0,0.120501]
[1732297502081,0.050498,98899.0,98894.0,0.120501]
[1732297502375,0.05201332,98903.0,98894.0,0.120501]
[1732297502566,0.0506015,98895.0,98894.0,0.07]
[1732297505274,0.0001015,98895.0,98877.0,0.3608]
[1732297505581,0.050505,98885.0,98884.0,0.03]
[1732297508584,0.09102491,98885.0,98884.0,0.03]
[1732297508970,0.3608,98889.0,98888.0,0.050504]
[1732297509178,0.3608,98897.0,98884.0,0.03]
[1732297509375,0.3608,98897.0,98894.0,0.050501]
[1732297509573,0.0506015,98895.0,98894.0,0.110501]
[1732297509783,0.0001015,98895.0,98894.0,0.110501]
[1732297510481,0.0001015,98895.0,98894.0,0.471301]
[1732297510979,0.0001015,98895.0,98894.0,0.5111254]
[1732297511482,0.0001015,98895.0,98894.0,0.1503254]
[1732297511685,0.0506015,98895.0,98894.0,0.06]
[1732297512771,0.0001015,98895.0,98894.0,0.110501]
[1732297514181,0.0506015,98895.0,98894.0,0.110501]
[1732297514484,0.0001015,98895.0,98894.0,0.110501]
[1732297516974,0.00151732,98903.0,98894.0,0.110501]
[1732297517178,0.00151732,98903.0,98902.0,0.411296]
[1732297518181,0.00151732,98903.0,98902.0,0.41138469]
[1732297518983,0.050487,98921.0,98920.0,0.050487]
[1732297519177,0.050487,98921.0,98920.0,0.080487]
[1732297520389,0.050487,98921.0,98920.0,0.03]
[1732297521885,0.050496,98903.0,98902.0,0.05058469]
[1732297522086,0.050496,98903.0,98902.0,0.06008869]
[1732297522287,0.050496,98903.0,98902.0,8.869e-05]
[1732297522476,0.30332,98903.0,98881.0,0.0313]
[1732297522676,0.3608,98897.0,98883.0,0.4108]
[1732297522892,0.050506,98884.0,98883.0,0.45100138]
[1732297523475,0.050505,98889.0,98888.0,0.050503]
[1732297523980,0.3608,98897.0,98883.0,0.45160138]
[1732297524187,0.050506,98884.0,98883.0,0.45100138]
[1732297524486,0.050506,98884.0,98883.0,0.50150738]
[1732297524683,0.3608,98897.0,98883.0,0.45100138]
[1732297526384,0.050502,98891.0,98890.0,0.050502]
[1732297526977,0.3608,98897.0,98883.0,0.45152138]
[1732297527188,0.0505,98896.0,98895.0,0.0505]
[1732297527886,0.3608,98897.0,98891.0,0.050502]
[1732297528088,0.050502,98892.0,98891.0,0.050502]
[1732297530000,0.411299,98897.0,98896.0,0.0505]
[1732297530780,0.3608,98897.0,98890.0,0.050502]
[1732297530981,0.050501,98893.0,98887.0,0.07]
[1732297531177,0.050501,98893.0,98892.0,0.050502]
[1732297532086,0.050501,98893.0,98892.0,0.060502]
[1732297533889,0.3608,98897.0,98896.0,0.0505]
[1732297534597,0.00151727,98904.0,98903.0,0.050496]
[1732297534891,0.00151727,98904.0,98903.0,0.200496]
[1732297536693,0.00151727,98904.0,98903.0,0.23995689]
[1732297537389,0.05201227,98904.0,98903.0,0.23995689]
[1732297538397,0.00151727,98904.0,98903.0,0.23995689]
[1732297539497,0.05201227,98904.0,98903.0,0.23995689]
[1732297540003,0.00151727,98904.0,98903.0,0.23995689]
[1732297540496,0.00056001,98919.0,98918.0,0.050488]
[1732297540692,0.3608,98927.0,98926.0,0.050484]
[1732297543997,0.0301,98932.0,98926.0,0.050484]
[1732297544190,0.0301,98932.0,98931.0,0.411282]
[1732297544492,0.0301,98932.0,98931.0,0.451282]
[1732297545092,0.0301,98932.0,98931.0,0.090482]
[1732297546592,0.080581,98932.0,98931.0,0.13096051]
[1732297547791,0.0301,98932.0,98931.0,0.13096051]
[1732297547996,0.42514,98939.0,98938.0,0.050478]
[1732297548192,0.0637,98939.0,98938.0,0.050478]
[1732297548396,0.0309,98949.0,98943.0,0.050476]
[1732297548697,0.00010004,98964.0,98943.0,0.050476]
[1732297548698,0.0626,98963.0,98962.0,0.050466]
[1732297548890,0.0626,98963.0,98962.0,0.421266]
[1732297549297,0.0982,98987.0,98962.0,0.421266]
[1732297549298,3.10622421,99000.0,98999.0,0.050447]
[1732297549486,3.10622421,99000.0,98999.0,0.3608]
[1732297549695,3.40926421,99000.0,98999.0,0.3608]
[1732297549994,0.050449,98996.0,98990.0,0.3608]
[1732297550189,3.20418474,99000.0,98990.0,0.00052]
[1732297550395,0.050451,98992.0,98991.0,8.319e-05]
[1732297550592,0.148651,98992.0,98967.0,0.3608]
[1732297550899,0.148651,98992.0,98959.0,0.050467]
[1732297550900,0.050464,98965.0,98959.0,0.050467]
[1732297551197,0.0322,98964.0,98959.0,0.3608]
[1732297551698,0.0322,98964.0,98962.0,0.050466]
[1732297551893,0.0314,98970.0,98959.0,0.3708]
[1732297552085,0.0314,98970.0,98969.0,0.411262]
[1732297552290,0.0314,98970.0,98969.0,0.421262]
[1732297552885,0.0314,98970.0,98969.0,0.3608]
[1732297554391,0.0314,98970.0,98969.0,0.411262]
[1732297554593,0.0314,98970.0,98969.0,0.421262]
[1732297555001,0.050459,98976.0,98973.0,0.05046]
[1732297555295,0.05046,98975.0,98969.0,0.36132]
[1732297555496,0.05046,98975.0,98969.0,0.4108]
[1732297555795,0.050459,98975.0,98973.0,0.05046]
[1732297556002,0.0322,98977.0,98974.0,0.050459]
[1732297556300,0.0322,98977.0,98969.0,0.36132]
[1732297556494,0.0322,98977.0,98975.0,0.050459]
[1732297556701,0.0303,98978.0,98977.0,0.050458]
[1732297556897,0.0312,98981.0,98980.0,0.050457]
[1732297557199,0.050453,98988.0,98980.0,0.13]
[1732297557401,0.050453,98988.0,98986.0,0.050453]
[1732297558901,0.050453,98988.0,98986.0,0.150453]
[1732297559808,0.0309,98990.0,98989.0,0.050452]
[1732297560706,0.0309,98990.0,98989.0,0.240452]
[1732297560906,0.081352,98990.0,98989.0,0.19]
[1732297562696,0.30308,98989.0,98967.0,0.3608]
[1732297562890,0.050463,98968.0,98967.0,0.3908]
[1732297563096,0.050463,98968.0,98967.0,0.3608]
[1732297563594,0.09816,98977.0,98967.0,0.3608]
[1732297563595,0.050461,98973.0,98972.0,0.050459]
[1732297563795,0.050461,98973.0,98972.0,0.080459]
[1732297564798,0.09816,98977.0,98972.0,0.03]
[1732297565002,0.050458,98977.0,98976.0,0.411259]
[1732297565194,0.09816,98986.0,98976.0,0.3608]
[1732297565394,0.39246,98990.0,98989.0,0.050452]
[1732297565699,0.442152,98990.0,98989.0,0.12]
[1732297566594,0.081352,98990.0,98989.0,0.12]
[1732297566802,0.0309,98990.0,98989.0,0.12]
[1732297567005,0.0309,98990.0,98989.0,0.170452]
[1732297567402,0.050449,98996.0,98995.0,0.050449]
[1732297567701,0.050452,98993.0,98992.0,0.05045]
[1732297567902,0.050452,98990.0,98989.0,0.02]
[1732297568103,0.050452,98990.0,98989.0,0.070452]
[1732297569010,0.3608,98998.0,98989.0,0.02]
[1732297569204,0.050452,98990.0,98989.0,0.02]
[1732297569403,0.050451,98994.0,98989.0,0.02]
[1732297569605,0.00151606,98999.0,98998.0,0.050447]
[1732297571207,3.13984421,99000.0,98998.0,0.050447]
[1732297571208,0.90685595,99000.0,98999.0,0.30304]
[1732297571395,0.6391438,99000.0,98999.0,1.17304]
[1732297571597,0.29402717,99000.0,98999.0,1.62420086]
[1732297571795,1.1e-07,99000.0,98999.0,1.62420086]
[1732297572304,0.031,99039.0,99024.0,0.050434]
[1732297572505,0.031,99039.0,99024.0,0.962034]
[1732297572709,0.031,99039.0,99024.0,1.51485478]
[1732297572909,4.3e-07,99025.0,99024.0,1.51485478]
[1732297573208,4.3e-07,99025.0,99024.0,1.81485478]
[1732297574207,0.09055211,99053.0,99051.0,0.05042]
[1732297574404,0.15253615,99057.0,99051.0,0.32635575]
[1732297574594,0.0031496,99056.0,99055.0,0.050418]
[1732297575196,0.0031496,99056.0,99055.0,0.05049079]
[1732297575404,0.15253615,99057.0,99055.0,0.05049079]
[1732297575604,0.0031496,99056.0,99055.0,0.05049079]
[1732297575802,0.15253615,99057.0,99055.0,0.05049079]
[1732297576005,0.0031496,99056.0,99055.0,0.05049079]
[1732297578405,0.0031496,99056.0,99055.0,0.09063909]
[1732297579206,0.0031496,99056.0,99055.0,0.04022109]
[1732297579410,0.050419,99055.0,99043.0,0.00052]
[1732297579607,0.11966068,99045.0,99043.0,0.04013217]
[1732297579808,0.05357457,99044.0,99038.0,0.050427]
[1732297580005,0.12281434,99043.0,99030.0,0.3614]
[1732297580211,0.050431,99032.0,99030.0,0.4108]
[1732297580417,0.00314957,99031.0,99030.0,0.45076659]
[1732297580914,0.08973674,99031.0,99030.0,0.49076659]
[1732297581113,0.08973565,99031.0,99030.0,0.49076659]
[1732297581303,0.08974047,99033.0,99030.0,0.44033559]
[1732297581509,0.08974047,99033.0,99031.0,0.050431]
[1732297581809,0.050429,99034.0,99032.0,0.05043]
[1732297582309,0.00315007,99033.0,99032.0,0.05043]
[1732297582716,0.05043,99032.0,99030.0,0.44089559]
[1732297583011,0.00315007,99031.0,99030.0,0.44033559]
[1732297583211,0.12281484,99031.0,99030.0,0.44033559]
[1732297583417,0.17324584,99031.0,99030.0,0.44033559]
[1732297583718,0.05358107,99031.0,99030.0,0.07953559]
[1732297584012,0.20819775,99031.0,99019.0,0.00052]
[1732297584213,0.050436,99020.0,99019.0,0.08943629]
[1732297584519,0.05358607,99020.0,99019.0,0.05]
[1732297585019,0.05862701,99020.0,99019.0,0.14067968]
[1732297586910,0.17840533,99020.0,99019.0,0.14067968]
[1732297587109,0.17336439,99020.0,99019.0,0.14067968]
[1732297587316,0.05358659,99020.0,99019.0,0.14067968]
[1732297587812,0.05358659,99020.0,99019.0,0.09024268]
[1732297588014,0.05358659,99020.0,99019.0,0.14067968]
[1732297588810,0.05358659,99020.0,99019.0,0.09024268]
[1732297589111,0.05358659,99020.0,99019.0,0.14067968]
[1732297590719,0.050439,99015.0,99014.0,0.050439]
[1732297592017,0.08991527,99017.0,99016.0,0.050438]
[1732297592518,0.081837,99019.0,99018.0,0.050437]
[1732297592710,0.1213653,99019.0,99018.0,0.050437]
[1732297593312,0.081837,99019.0,99018.0,0.050437]
[1732297593509,0.1718023,99019.0,99018.0,0.050437]
[1732297593816,0.081837,99019.0,99018.0,0.050437]
[1732297594017,0.0314,99019.0,99018.0,0.050437]
[1732297594212,0.12142671,99019.0,99018.0,0.050437]
[1732297594517,0.0314,99019.0,99018.0,0.050437]
[1732297594819,0.12148461,99019.0,99018.0,0.050437]
[1732297596213,0.12148461,99019.0,99013.0,0.05044]
[1732297596408,0.09013469,99016.0,99011.0,0.04009892]
[1732297596619,0.09013469,99016.0,99015.0,0.050439]
[1732297596823,0.09792,99018.0,99017.0,0.050438]
[1732297597027,0.00819213,99018.0,99011.0,0.09953892]
[1732297597215,0.00315082,99017.0,99016.0,0.050438]
[1732297597417,0.09018514,99023.0,99022.0,0.050435]
[1732297597614,0.0031504,99023.0,99022.0,0.100435]
[1732297597812,0.09018514,99028.0,99027.0,0.050433]
[1732297598022,0.0031503,99028.0,99027.0,0.411233]
[1732297598217,0.09018514,99045.0,99028.0,0.050432]
[1732297598526,0.032,99046.0,99045.0,0.050424]
[1732297598821,0.03514958,99046.0,99045.0,0.110424]
[1732297601226,0.03514958,99046.0,99045.0,0.15011277]
[1732297602030,0.0351495,99046.0,99045.0,0.15011277]
[1732297602218,0.032,99046.0,99045.0,0.15011277]
[1732297603018,0.03514953,99046.0,99045.0,0.15011277]
[1732297603216,0.032,99046.0,99045.0,0.15011277]
[1732297605324,0.09024734,99057.0,99045.0,0.40256877]
[1732297605626,0.00151487,99059.0,99058.0,0.050417]
[1732297605817,0.00466452,99059.0,99058.0,0.358297]
[1732297606315,0.00314965,99059.0,99058.0,0.358297]
[1732297606525,0.09030846,99075.0,99058.0,0.358297]
[1732297606725,0.0934236,99074.0,99067.0,0.3608]
[1732297606927,0.0934236,99074.0,99073.0,0.050409]
[1732297606928,0.09027445,99074.0,99073.0,0.050409]
[1732297607123,0.00314906,99074.0,99073.0,0.110409]
[1732297609027,0.0303,99078.0,99077.0,0.050407]
[1732297609229,0.08385603,99078.0,99077.0,0.050407]
[1732297609526,0.080707,99078.0,99077.0,0.050407]
[1732297611423,0.0303,99078.0,99073.0,0.099849]
[1732297611631,0.050409,99074.0,99073.0,0.099849]
[1732297612421,0.0535583,99074.0,99073.0,0.099849]
[1732297613217,0.050409,99074.0,99073.0,0.099849]
[1732297613425,0.05355829,99074.0,99073.0,0.099849]
[1732297614724,0.050409,99074.0,99073.0,0.099849]
[1732297615129,0.050409,99074.0,99073.0,0.06]
[1732297615335,0.050417,99057.0,99056.0,0.3608]
[1732297615525,0.411217,99057.0,99056.0,0.04]
[1732297615936,0.050425,99043.0,99042.0,0.4002844]
[1732297616229,0.050425,99043.0,99042.0,0.5107094]
[1732297616634,0.411225,99043.0,99042.0,0.0994844]
[1732297616932,0.411225,99043.0,99031.0,0.36132]
[1732297616933,0.05043,99032.0,99031.0,0.00052]
[1732297617124,0.41123,99032.0,99031.0,0.04]
[1732297617327,0.3608,99032.0,99020.0,0.09796053]
[1732297617626,0.050436,99023.0,99022.0,0.050435]
[1732297617828,0.411236,99023.0,99022.0,0.050435]
[1732297618033,0.3608,99023.0,99022.0,0.050435]
[1732297618330,0.050436,99021.0,99020.0,0.04131011]
[1732297618531,0.3608,99023.0,99014.0,0.050439]
[1732297618833,0.050439,99015.0,99014.0,0.080439]
[1732297620432,0.0305,99022.0,99011.0,0.03960934]
[1732297620730,0.050442,99009.0,99008.0,0.00052]
[1732297620927,0.411242,99009.0,98995.0,0.050449]
[1732297621127,0.05045,98993.0,98992.0,0.04]
[1732297621431,0.05045,98993.0,98992.0,0.090451]
[1732297621629,0.05045,98993.0,98992.0,0.04]
[1732297622137,0.050453,98988.0,98986.0,0.09127426]
[1732297622326,0.050453,98988.0,98986.0,0.11127426]
[1732297622834,0.0333,98997.0,98986.0,0.11127426]
[1732297622835,0.050451,98992.0,98991.0,0.05045]
[1732297623036,0.0333,98997.0,98986.0,0.09127326]
[1732297623232,0.050451,98991.0,98986.0,0.06082026]
[1732297623537,0.083748,98997.0,98991.0,0.050451]
[1732297623730,0.0333,98997.0,98986.0,0.04082026]
[1732297623933,0.0333,98997.0,98992.0,0.05045]
[1732297624124,0.0333,98997.0,98987.0,0.09796053]
[1732297624438,0.00072,98998.0,98997.0,0.050448]
[1732297624640,0.509122,99009.0,99007.0,0.050443]
[1732297624935,0.3608,99009.0,99007.0,0.050443]
[1732297625333,0.0303,99013.0,99012.0,0.05044]
[1732297625632,0.3608,99030.0,99012.0,0.05044]
[1732297625633,0.09788,99028.0,99012.0,0.01]
[1732297625841,0.09788,99028.0,99027.0,0.050433]
[1732297627239,0.3608,99030.0,99029.0,0.050432]
[1732297627545,0.3608,99030.0,99029.0,0.110432]
[1732297628339,0.0303,99031.0,99029.0,0.110432]
[1732297629425,0.0315,99045.0,99029.0,0.06]
[1732297629631,0.0315,99045.0,99042.0,0.050425]
[1732297630231,0.00151504,99046.0,99042.0,0.220425]
[1732297630538,0.00151504,99046.0,99042.0,0.17]
[1732297630539,0.41208967,99043.0,99042.0,0.17]
[1732297630841,0.41208967,99043.0,99021.0,0.00052]
[1732297630842,0.36166467,99043.0,99021.0,0.0978]
[1732297631040,0.3608,99031.0,99030.0,0.050431]
[1732297635439,0.00162467,99043.0,99042.0,0.050425]
[1732297635740,0.05128967,99043.0,99042.0,0.140425]
[1732297635944,0.00086467,99043.0,99042.0,0.140425]
[1732297636641,0.05128967,99043.0,99042.0,0.140425]
[1732297637034,0.00086467,99043.0,99042.0,0.140425]